[Event "Early-Titled-Tuesday-Blitz-April-23-2024"]
[Site "Chess.com"]
[Date "2024.04.23"]
[Round "10"]
[White "FGHSMN"]
[Black "Rodalquilar"]
[Result "0-1"]
[WhiteElo "2895"]
[BlackElo "2746"]
[TimeControl "180+1"]
[EndTime "10:01:11 PDT"]
[Termination "Rodalquilar won on time"]

1. e4 {[%clk 0:03:00.9]} 1... d5 {[%clk 0:03:00.3]} 2. exd5 {[%clk 0:03:00.7]}
2... Qxd5 {[%clk 0:03:01.2]} 3. Nc3 {[%clk 0:03:01.1]} 3... Qa5 {[%clk
0:03:01.4]} 4. d4 {[%clk 0:03:01.1]} 4... Nf6 {[%clk 0:03:01.9]} 5. Nf3 {[%clk
0:03:01.9]} 5... Bf5 {[%clk 0:03:02.1]} 6. Bc4 {[%clk 0:03:01.6]} 6... e6 {[%clk
0:03:02.5]} 7. O-O {[%clk 0:03:02.3]} 7... Bb4 {[%clk 0:03:02]} 8. Bd2 {[%clk
0:03:01.1]} 8... Nc6 {[%clk 0:03:01.8]} 9. a3 {[%clk 0:02:59.5]} 9... Bxc3
{[%clk 0:03:02.2]} 10. Bxc3 {[%clk 0:03:00.4]} 10... Qb6 {[%clk 0:03:02.7]} 11.
a4 {[%clk 0:02:58.6]} 11... a5 {[%clk 0:03:02.2]} 12. d5 {[%clk 0:02:52.9]}
12... O-O-O {[%clk 0:02:47.5]} 13. Bxf6 {[%clk 0:01:57.9]} 13... gxf6 {[%clk
0:02:46.6]} 14. Nh4 {[%clk 0:01:52.7]} 14... Be4 {[%clk 0:02:18]} 15. Qh5 {[%clk
0:01:45.9]} 15... Bg6 {[%clk 0:02:18.1]} 16. Qe2 {[%clk 0:01:29.5]} 16... Nd4
{[%clk 0:02:12.9]} 17. Qg4 {[%clk 0:01:23]} 17... Nxc2 {[%clk 0:01:58.9]} 18.
Rac1 {[%clk 0:01:16.6]} 18... Qd4 {[%clk 0:01:46.5]} 19. Qe2 {[%clk 0:00:48]}
19... exd5 {[%clk 0:01:38.7]} 20. Nxg6 {[%clk 0:00:45.4]} 20... hxg6 {[%clk
0:01:38.7]} 21. Bb5 {[%clk 0:00:30]} 21... Nb4 {[%clk 0:01:32.2]} 22. Qe7 {[%clk
0:00:29.7]} 22... Qe5 {[%clk 0:01:30.4]} 23. Qxe5 {[%clk 0:00:26.2]} 23... fxe5
{[%clk 0:01:30.2]} 24. f4 {[%clk 0:00:25.4]} 24... e4 {[%clk 0:01:24.7]} 25. f5
{[%clk 0:00:26]} 25... g5 {[%clk 0:01:25.4]} 26. f6 {[%clk 0:00:23]} 26... c6
{[%clk 0:01:03.6]} 27. Rf5 {[%clk 0:00:22.9]} 27... d4 {[%clk 0:00:49.1]} 28.
Rxg5 {[%clk 0:00:19.9]} 28... d3 {[%clk 0:00:49.6]} 29. Bc4 {[%clk 0:00:18.5]}
29... e3 {[%clk 0:00:34]} 30. Re5 {[%clk 0:00:17.4]} 30... e2 {[%clk 0:00:32.7]}
31. Rb1 {[%clk 0:00:14.8]} 31... Rhe8 {[%clk 0:00:16.8]} 32. Rxe8 {[%clk
0:00:15.2]} 32... Rxe8 {[%clk 0:00:17.1]} 33. Kf2 {[%clk 0:00:16]} 33... Nc2
{[%clk 0:00:09.7]} 34. Bxf7 {[%clk 0:00:14.3]} 34... e1=Q+ {[%clk 0:00:07.7]}
35. Rxe1 {[%clk 0:00:14.1]} 35... Rxe1 {[%clk 0:00:08.6]} 36. Bc4 {[%clk
0:00:09.8]} 36... Re2+ {[%clk 0:00:04.6]} 37. Kg3 {[%clk 0:00:08.2]} 37... Kd8
{[%clk 0:00:03.3]} 38. h4 {[%clk 0:00:02.3]} 38... Ne1 {[%clk 0:00:03.1]} 39. h5
{[%clk 0:00:02]} 39... Rxg2+ {[%clk 0:00:03.6]} 40. Kh3 {[%clk 0:00:02.1]} 40...
d2 {[%clk 0:00:04.1]} 41. Bb3 {[%clk 0:00:01.4]} 41... Rf2 {[%clk 0:00:03.4]}
0-1

[Event "Early-Titled-Tuesday-Blitz-April-23-2024"]
[Site "Chess.com"]
[Date "2024.04.23"]
[Round "10"]
[White "kids2010"]
[Black "Ginger_GM"]
[Result "1-0"]
[WhiteElo "2800"]
[BlackElo "2666"]
[TimeControl "180+1"]
[EndTime "10:01:14 PDT"]
[Termination "kids2010 won by checkmate"]

1. e4 {[%clk 0:03:00.9]} 1... d6 {[%clk 0:02:59.6]} 2. d4 {[%clk 0:03:00.1]}
2... Nf6 {[%clk 0:02:58.4]} 3. Nc3 {[%clk 0:03:00]} 3... Nbd7 {[%clk 0:02:58.8]}
4. Bc4 {[%clk 0:03:00]} 4... e5 {[%clk 0:02:57.8]} 5. Nf3 {[%clk 0:03:00.4]}
5... Be7 {[%clk 0:02:57.8]} 6. O-O {[%clk 0:03:00.2]} 6... c6 {[%clk 0:02:58.2]}
7. h3 {[%clk 0:03:00.7]} 7... b5 {[%clk 0:02:57.8]} 8. Bb3 {[%clk 0:03:00.9]}
8... a5 {[%clk 0:02:57.4]} 9. a3 {[%clk 0:02:37]} 9... O-O {[%clk 0:02:51.9]}
10. Re1 {[%clk 0:02:33.9]} 10... Qc7 {[%clk 0:02:50.6]} 11. Nh4 {[%clk
0:02:25.1]} 11... Nb6 {[%clk 0:02:45.7]} 12. Nf5 {[%clk 0:02:07.6]} 12... Bxf5
{[%clk 0:02:45.1]} 13. exf5 {[%clk 0:02:08.5]} 13... exd4 {[%clk 0:02:34.1]} 14.
Qxd4 {[%clk 0:02:05.4]} 14... d5 {[%clk 0:02:19.9]} 15. Bf4 {[%clk 0:01:51.4]}
15... Qb7 {[%clk 0:02:19.6]} 16. Rxe7 {[%clk 0:01:51.5]} 16... Qxe7 {[%clk
0:02:18]} 17. Qxb6 {[%clk 0:01:52.2]} 17... b4 {[%clk 0:02:09.7]} 18. Na4 {[%clk
0:01:42.5]} 18... Qe4 {[%clk 0:02:03.5]} 19. Be3 {[%clk 0:01:34.3]} 19... Rac8
{[%clk 0:01:53.6]} 20. Qxa5 {[%clk 0:01:23.2]} 20... bxa3 {[%clk 0:01:53.5]} 21.
bxa3 {[%clk 0:01:24.1]} 21... Qxf5 {[%clk 0:01:52.4]} 22. Nc5 {[%clk 0:01:13.9]}
22... Rfe8 {[%clk 0:01:50.9]} 23. Qd2 {[%clk 0:01:12.5]} 23... Qe5 {[%clk
0:01:31.6]} 24. Bd4 {[%clk 0:01:09.2]} 24... Qd6 {[%clk 0:01:30.3]} 25. a4
{[%clk 0:01:06.4]} 25... Ne4 {[%clk 0:01:29.4]} 26. Nxe4 {[%clk 0:01:06.4]}
26... Rxe4 {[%clk 0:01:30]} 27. Be3 {[%clk 0:01:02.8]} 27... f5 {[%clk
0:01:21.4]} 28. g3 {[%clk 0:00:54.1]} 28... Rce8 {[%clk 0:01:19.5]} 29. a5
{[%clk 0:00:52.7]} 29... Rxe3 {[%clk 0:01:19.4]} 30. fxe3 {[%clk 0:00:50.4]}
30... Qxg3+ {[%clk 0:01:19.5]} 31. Qg2 {[%clk 0:00:49]} 31... Qxe3+ {[%clk
0:01:19.7]} 32. Kh1 {[%clk 0:00:49.1]} 32... Re6 {[%clk 0:01:11.3]} 33. a6
{[%clk 0:00:47.1]} 33... Qa7 {[%clk 0:01:06.8]} 34. Qg1 {[%clk 0:00:42.9]} 34...
Re3 {[%clk 0:00:59.9]} 35. Qg2 {[%clk 0:00:19.4]} 35... Re6 {[%clk 0:00:57.7]}
36. c4 {[%clk 0:00:15.3]} 36... Rg6 {[%clk 0:00:55.5]} 37. Qf3 {[%clk
0:00:15.2]} 37... dxc4 {[%clk 0:00:19.7]} 38. Bxc4+ {[%clk 0:00:15.6]} 38... Kh8
{[%clk 0:00:20.2]} 39. Qxf5 {[%clk 0:00:13.2]} 39... Qa8 {[%clk 0:00:11.6]} 40.
a7 {[%clk 0:00:10]} 40... Rf6 {[%clk 0:00:12.1]} 41. Qe4 {[%clk 0:00:08.4]}
41... Rf8 {[%clk 0:00:09.7]} 42. Ra6 {[%clk 0:00:04.7]} 42... Qb7 {[%clk
0:00:09.7]} 43. Ra1 {[%clk 0:00:04.8]} 43... Ra8 {[%clk 0:00:08.3]} 44. Qe3
{[%clk 0:00:03.1]} 44... c5+ {[%clk 0:00:07.5]} 45. Kh2 {[%clk 0:00:03.7]} 45...
Qc7+ {[%clk 0:00:07.5]} 46. Qg3 {[%clk 0:00:04.3]} 46... Qb7 {[%clk 0:00:06.9]}
47. Bf1 {[%clk 0:00:03.1]} 47... Qb2+ {[%clk 0:00:06.8]} 48. Qg2 {[%clk
0:00:02.4]} 48... Qe5+ {[%clk 0:00:06.9]} 49. Kh1 {[%clk 0:00:02.4]} 49... Qxa1
{[%clk 0:00:06.3]} 50. Qxa8# {[%clk 0:00:02.1]} 1-0

[Event "Early-Titled-Tuesday-Blitz-April-23-2024"]
[Site "Chess.com"]
[Date "2024.04.23"]
[Round "10"]
[White "Alexchess1984"]
[Black "Journey_to_GrandMaster_YT"]
[Result "1-0"]
[WhiteElo "2667"]
[BlackElo "2548"]
[TimeControl "180+1"]
[EndTime "10:01:15 PDT"]
[Termination "Alexchess1984 won by checkmate"]

1. d4 {[%clk 0:03:00.9]} 1... d6 {[%clk 0:03:00.9]} 2. e4 {[%clk 0:02:59.2]}
2... Nf6 {[%clk 0:03:01.8]} 3. Nc3 {[%clk 0:02:58.2]} 3... e5 {[%clk 0:03:02.3]}
4. Nf3 {[%clk 0:02:57.3]} 4... Nbd7 {[%clk 0:03:02.3]} 5. Bc4 {[%clk 0:02:55.9]}
5... Be7 {[%clk 0:03:02.8]} 6. O-O {[%clk 0:02:54.9]} 6... O-O {[%clk
0:03:03.3]} 7. Re1 {[%clk 0:02:54.2]} 7... c6 {[%clk 0:03:03.8]} 8. a4 {[%clk
0:02:53.6]} 8... a5 {[%clk 0:03:04.3]} 9. h3 {[%clk 0:02:51.4]} 9... Nb6 {[%clk
0:03:04.6]} 10. Bf1 {[%clk 0:02:50.9]} 10... exd4 {[%clk 0:03:04.7]} 11. Nxd4
{[%clk 0:02:48.1]} 11... d5 {[%clk 0:03:04.8]} 12. e5 {[%clk 0:02:44]} 12... Ne8
{[%clk 0:03:04.9]} 13. Qh5 {[%clk 0:02:22.6]} 13... g6 {[%clk 0:03:01.1]} 14.
Qh6 {[%clk 0:02:16.4]} 14... Ng7 {[%clk 0:03:01]} 15. Bd3 {[%clk 0:02:09.6]}
15... f6 {[%clk 0:02:19.4]} 16. Bf4 {[%clk 0:01:47.1]} 16... Nd7 {[%clk
0:02:16.5]} 17. Nf3 {[%clk 0:01:37.7]} 17... Qb6 {[%clk 0:01:50]} 18. exf6
{[%clk 0:01:29.7]} 18... Bxf6 {[%clk 0:01:49.1]} 19. Ng5 {[%clk 0:01:23.8]}
19... Bxg5 {[%clk 0:01:48.3]} 20. Bxg5 {[%clk 0:01:17.4]} 20... Qxf2+ {[%clk
0:01:42.7]} 21. Kh1 {[%clk 0:01:17.9]} 21... Nf6 {[%clk 0:00:37.4]} 22. Rf1
{[%clk 0:00:56.7]} 22... Qd4 {[%clk 0:00:32.8]} 23. Rae1 {[%clk 0:00:53]} 23...
Bf5 {[%clk 0:00:28.5]} 24. Bxf5 {[%clk 0:00:46.4]} 24... Nxf5 {[%clk 0:00:27.2]}
25. Rxf5 {[%clk 0:00:44.5]} 25... gxf5 {[%clk 0:00:26.9]} 26. Re6 {[%clk
0:00:36.6]} 26... Ne8 {[%clk 0:00:15.1]} 27. Re7 {[%clk 0:00:30.2]} 27... Rf7
{[%clk 0:00:13]} 28. Rxf7 {[%clk 0:00:30]} 28... Kxf7 {[%clk 0:00:13.9]} 29.
Qxh7+ {[%clk 0:00:26.9]} 29... Qg7 {[%clk 0:00:13.1]} 30. Qxf5+ {[%clk
0:00:26.3]} 30... Nf6 {[%clk 0:00:13.4]} 31. Ne2 {[%clk 0:00:23.6]} 31... Qg6
{[%clk 0:00:10.3]} 32. Qf4 {[%clk 0:00:20.1]} 32... Re8 {[%clk 0:00:09.4]} 33.
Ng3 {[%clk 0:00:20.5]} 33... Re6 {[%clk 0:00:04.3]} 34. Kh2 {[%clk 0:00:20.6]}
34... Kg7 {[%clk 0:00:02]} 35. Qc7+ {[%clk 0:00:19]} 35... Qf7 {[%clk 0:00:02]}
36. Nf5+ {[%clk 0:00:17.8]} 36... Kg6 {[%clk 0:00:02]} 37. Nh4+ {[%clk
0:00:18.1]} 37... Kg7 {[%clk 0:00:01.8]} 38. Nf5+ {[%clk 0:00:17.1]} 38... Kg6
{[%clk 0:00:02.2]} 39. Nh4+ {[%clk 0:00:16]} 39... Kg7 {[%clk 0:00:02.7]} 40.
Bh6+ {[%clk 0:00:16.3]} 40... Kg8 {[%clk 0:00:02.8]} 41. Qc8+ {[%clk 0:00:15.8]}
41... Re8 {[%clk 0:00:03.1]} 42. Qf5 {[%clk 0:00:14.9]} 42... Ne4 {[%clk
0:00:03]} 43. Qg4+ {[%clk 0:00:14.5]} 43... Kh7 {[%clk 0:00:03.1]} 44. Bf4
{[%clk 0:00:14.1]} 44... Rg8 {[%clk 0:00:03.1]} 45. Qf3 {[%clk 0:00:13.9]} 45...
Rf8 {[%clk 0:00:02.9]} 46. g3 {[%clk 0:00:13.7]} 46... Qf6 {[%clk 0:00:02.7]}
47. Ng2 {[%clk 0:00:13.3]} 47... Qxb2 {[%clk 0:00:03]} 48. Qh5+ {[%clk
0:00:12.5]} 48... Kg8 {[%clk 0:00:03.6]} 49. Be5 {[%clk 0:00:10.2]} 49... Qxc2
{[%clk 0:00:02.9]} 50. Qg6# {[%clk 0:00:10.1]} 1-0

[Event "Early-Titled-Tuesday-Blitz-April-23-2024"]
[Site "Chess.com"]
[Date "2024.04.23"]
[Round "10"]
[White "GMKrikor"]
[Black "temiksmozg"]
[Result "0-1"]
[WhiteElo "2889"]
[BlackElo "2707"]
[TimeControl "180+1"]
[EndTime "10:01:17 PDT"]
[Termination "temiksmozg won on time"]

1. Nf3 {[%clk 0:03:00.9]} 1... d5 {[%clk 0:03:00.1]} 2. c4 {[%clk 0:03:00.5]}
2... e6 {[%clk 0:03:00]} 3. d4 {[%clk 0:03:00.7]} 3... Nf6 {[%clk 0:03:00.2]} 4.
Nc3 {[%clk 0:03:00.8]} 4... c6 {[%clk 0:02:59.6]} 5. Qc2 {[%clk 0:03:00.4]} 5...
Nbd7 {[%clk 0:02:58.3]} 6. e4 {[%clk 0:03:00.3]} 6... dxe4 {[%clk 0:02:52.6]} 7.
Nxe4 {[%clk 0:03:01.2]} 7... Nxe4 {[%clk 0:02:52.7]} 8. Qxe4 {[%clk 0:03:02.1]}
8... Bb4+ {[%clk 0:02:52.5]} 9. Bd2 {[%clk 0:03:02.8]} 9... Nf6 {[%clk
0:02:52.5]} 10. Qe3 {[%clk 0:03:01.2]} 10... Qa5 {[%clk 0:02:50.5]} 11. Bd3
{[%clk 0:02:54.1]} 11... O-O {[%clk 0:02:40.4]} 12. a3 {[%clk 0:02:37.5]} 12...
Bxd2+ {[%clk 0:02:40]} 13. Qxd2 {[%clk 0:02:38.4]} 13... Qxd2+ {[%clk
0:02:39.2]} 14. Kxd2 {[%clk 0:02:39.3]} 14... Rd8 {[%clk 0:02:36.7]} 15. Kc3
{[%clk 0:02:38.8]} 15... b6 {[%clk 0:02:35.7]} 16. b4 {[%clk 0:02:33.3]} 16...
c5 {[%clk 0:02:31.9]} 17. dxc5 {[%clk 0:02:30.6]} 17... bxc5 {[%clk 0:02:32.8]}
18. b5 {[%clk 0:02:31.2]} 18... Bb7 {[%clk 0:02:32.8]} 19. Rhd1 {[%clk
0:01:39.9]} 19... a5 {[%clk 0:02:27.8]} 20. Nd2 {[%clk 0:01:17.4]} 20... Bxg2
{[%clk 0:02:12.7]} 21. f3 {[%clk 0:01:17.7]} 21... Kf8 {[%clk 0:02:11]} 22. Rg1
{[%clk 0:01:00.1]} 22... Bh3 {[%clk 0:02:10.8]} 23. Rg5 {[%clk 0:01:00.1]} 23...
Rac8 {[%clk 0:02:09.4]} 24. Nb3 {[%clk 0:00:53.4]} 24... h6 {[%clk 0:02:03.3]}
25. Rxc5 {[%clk 0:00:46.6]} 25... Bg2 {[%clk 0:01:50]} 26. Rxc8 {[%clk
0:00:43.5]} 26... Rxc8 {[%clk 0:01:50.9]} 27. Nxa5 {[%clk 0:00:39.6]} 27... Bxf3
{[%clk 0:01:50.5]} 28. b6 {[%clk 0:00:33.5]} 28... Nd5+ {[%clk 0:01:49.2]} 29.
Kd4 {[%clk 0:00:22.5]} 29... Nxb6 {[%clk 0:01:50.1]} 30. Rb1 {[%clk 0:00:20.3]}
30... Nd7 {[%clk 0:01:48.9]} 31. Ke3 {[%clk 0:00:19.1]} 31... Ba8 {[%clk
0:01:48.3]} 32. Rb5 {[%clk 0:00:13.9]} 32... f5 {[%clk 0:01:45.7]} 33. Nb3
{[%clk 0:00:12.6]} 33... g5 {[%clk 0:01:39.5]} 34. Nd4 {[%clk 0:00:12.6]} 34...
Ke7 {[%clk 0:01:38.5]} 35. a4 {[%clk 0:00:12.9]} 35... f4+ {[%clk 0:01:37.3]}
36. Kd2 {[%clk 0:00:13.2]} 36... e5 {[%clk 0:01:35.4]} 37. Nf5+ {[%clk
0:00:12.1]} 37... Ke6 {[%clk 0:01:34.1]} 38. Nxh6 {[%clk 0:00:12.6]} 38... e4
{[%clk 0:01:34.1]} 39. Bc2 {[%clk 0:00:11.4]} 39... Ne5 {[%clk 0:01:27.5]} 40.
c5 {[%clk 0:00:08.3]} 40... e3+ {[%clk 0:01:25.6]} 41. Kc3 {[%clk 0:00:07.2]}
41... Rh8 {[%clk 0:01:19.8]} 42. Rb6+ {[%clk 0:00:07]} 42... Bc6 {[%clk
0:00:51.3]} 43. Nf5 {[%clk 0:00:06]} 43... Rxh2 {[%clk 0:00:44.9]} 44. Nd4+
{[%clk 0:00:06.2]} 44... Kd7 {[%clk 0:00:42.6]} 45. Bf5+ {[%clk 0:00:05.5]}
45... Kc7 {[%clk 0:00:26.8]} 46. Ne6+ {[%clk 0:00:05.8]} 46... Kd7 {[%clk
0:00:24.6]} 47. Nd4+ {[%clk 0:00:06]} 47... Kc7 {[%clk 0:00:24.9]} 48. Ne6+
{[%clk 0:00:06.6]} 48... Kc8 {[%clk 0:00:25]} 49. Nxf4+ {[%clk 0:00:04.9]} 49...
Bd7 {[%clk 0:00:23.8]} 50. Bxd7+ {[%clk 0:00:03.1]} 50... Nxd7 {[%clk
0:00:24.7]} 51. Rc6+ {[%clk 0:00:01.2]} 51... Kb7 {[%clk 0:00:25]} 52. Rd6
{[%clk 0:00:01.8]} 52... Nxc5 {[%clk 0:00:23.6]} 53. Rd5 {[%clk 0:00:02.2]}
53... Nxa4+ {[%clk 0:00:20.7]} 54. Kd3 {[%clk 0:00:02.1]} 54... gxf4 {[%clk
0:00:21.6]} 55. Rf5 {[%clk 0:00:01.9]} 55... Rf2 {[%clk 0:00:20.7]} 0-1

[Event "Early-Titled-Tuesday-Blitz-April-23-2024"]
[Site "Chess.com"]
[Date "2024.04.23"]
[Round "10"]
[White "Brave_spirit12"]
[Black "Seochesspie"]
[Result "0-1"]
[WhiteElo "2724"]
[BlackElo "2906"]
[TimeControl "180+1"]
[EndTime "10:01:19 PDT"]
[Termination "Seochesspie won by resignation"]

1. e4 {[%clk 0:03:00.9]} 1... c5 {[%clk 0:02:59.9]} 2. Nf3 {[%clk 0:03:00.3]}
2... d6 {[%clk 0:03:00.2]} 3. d4 {[%clk 0:03:00.3]} 3... cxd4 {[%clk 0:03:00.6]}
4. Nxd4 {[%clk 0:03:01.2]} 4... Nf6 {[%clk 0:03:01.2]} 5. Nc3 {[%clk 0:03:00.1]}
5... a6 {[%clk 0:03:01.7]} 6. h3 {[%clk 0:02:56.8]} 6... e5 {[%clk 0:02:59.9]}
7. Nf3 {[%clk 0:02:55.6]} 7... Qc7 {[%clk 0:02:59.6]} 8. Nh2 {[%clk 0:02:54]}
8... Be6 {[%clk 0:02:58.2]} 9. a4 {[%clk 0:02:02]} 9... Nbd7 {[%clk 0:02:58]}
10. Bd3 {[%clk 0:02:02.6]} 10... Be7 {[%clk 0:02:57]} 11. Nf1 {[%clk 0:02:03.1]}
11... O-O {[%clk 0:02:55.3]} 12. Ne3 {[%clk 0:02:01.2]} 12... Rfd8 {[%clk
0:02:51.7]} 13. Qf3 {[%clk 0:02:00.6]} 13... h6 {[%clk 0:02:28.6]} 14. O-O
{[%clk 0:01:54.3]} 14... Rac8 {[%clk 0:02:24.2]} 15. Bd2 {[%clk 0:01:54]} 15...
Nc5 {[%clk 0:02:21.9]} 16. g4 {[%clk 0:01:46.8]} 16... Qb6 {[%clk 0:02:15.8]}
17. a5 {[%clk 0:01:35.8]} 17... Qc6 {[%clk 0:02:04.6]} 18. h4 {[%clk 0:01:33.8]}
18... Nxd3 {[%clk 0:01:59.6]} 19. cxd3 {[%clk 0:01:33.7]} 19... d5 {[%clk
0:01:59.9]} 20. g5 {[%clk 0:01:08.5]} 20... dxe4 {[%clk 0:01:54.3]} 21. dxe4
{[%clk 0:01:09.4]} 21... Rxd2 {[%clk 0:01:48.4]} 22. gxf6 {[%clk 0:01:06.2]}
22... Bxf6 {[%clk 0:01:49.3]} 23. Ncd5 {[%clk 0:01:03.8]} 23... Bxh4 {[%clk
0:01:42.1]} 24. Nf5 {[%clk 0:00:46.8]} 24... Bxf5 {[%clk 0:01:38.1]} 25. Qxf5
{[%clk 0:00:47.7]} 25... Qg6+ {[%clk 0:01:19.8]} 26. Qxg6 {[%clk 0:00:46.1]}
26... fxg6 {[%clk 0:01:20.7]} 27. Rac1 {[%clk 0:00:23.8]} 27... Bxf2+ {[%clk
0:01:18.4]} 28. Kh1 {[%clk 0:00:21.1]} 28... Rxc1 {[%clk 0:01:15.9]} 29. Rxc1
{[%clk 0:00:13.9]} 29... Rxb2 {[%clk 0:01:08.4]} 30. Rc8+ {[%clk 0:00:13.3]}
30... Kh7 {[%clk 0:01:03.2]} 31. Re8 {[%clk 0:00:13]} 31... Bd4 {[%clk
0:00:58.9]} 32. Re7 {[%clk 0:00:13.4]} 32... g5 {[%clk 0:00:59.1]} 33. Nf6+
{[%clk 0:00:13.5]} 33... Kg6 {[%clk 0:00:59.4]} 34. Ne8 {[%clk 0:00:14.4]} 34...
Rb5 {[%clk 0:00:45.4]} 35. Rxg7+ {[%clk 0:00:13.7]} 35... Kh5 {[%clk 0:00:45.8]}
36. Nf6+ {[%clk 0:00:10.8]} 36... Kh4 {[%clk 0:00:45.9]} 37. Kg2 {[%clk
0:00:11]} 37... Rxa5 {[%clk 0:00:38.6]} 38. Rg6 {[%clk 0:00:07.3]} 38... Ra2+
{[%clk 0:00:38]} 39. Kf1 {[%clk 0:00:06.9]} 39... h5 {[%clk 0:00:29.3]} 40. Rh6
{[%clk 0:00:06.4]} 40... g4 {[%clk 0:00:26.8]} 41. Rxh5+ {[%clk 0:00:05.9]}
41... Kg3 {[%clk 0:00:27.2]} 42. Ke1 {[%clk 0:00:05.3]} 42... Rf2 {[%clk
0:00:23.8]} 43. Rh6 {[%clk 0:00:03]} 43... Rf3 {[%clk 0:00:19.7]} 44. Rg6 {[%clk
0:00:03.3]} 44... Rf4 {[%clk 0:00:18.2]} 45. Nh5+ {[%clk 0:00:03.3]} 45... Kf3
{[%clk 0:00:18.5]} 46. Nxf4 {[%clk 0:00:03.3]} 46... exf4 {[%clk 0:00:18.9]} 47.
Rd6 {[%clk 0:00:03.9]} 47... Kxe4 {[%clk 0:00:18.4]} 48. Re6+ {[%clk 0:00:03.7]}
48... Kf3 {[%clk 0:00:18.2]} 49. Rd6 {[%clk 0:00:03.8]} 49... Be3 {[%clk
0:00:18.2]} 50. Rd7 {[%clk 0:00:02.4]} 50... b6 {[%clk 0:00:18.5]} 51. Rg7
{[%clk 0:00:02.5]} 51... a5 {[%clk 0:00:18.7]} 52. Rb7 {[%clk 0:00:01.8]} 52...
g3 {[%clk 0:00:18.9]} 53. Rg7 {[%clk 0:00:01.9]} 53... g2 {[%clk 0:00:18.3]} 0-1

[Event "Early-Titled-Tuesday-Blitz-April-23-2024"]
[Site "Chess.com"]
[Date "2024.04.23"]
[Round "10"]
[White "UmarovSabir"]
[Black "kuchma777"]
[Result "0-1"]
[WhiteElo "2321"]
[BlackElo "2478"]
[TimeControl "180+1"]
[EndTime "10:01:20 PDT"]
[Termination "kuchma777 won on time"]

1. e4 {[%clk 0:03:00.4]} 1... c6 {[%clk 0:03:00.1]} 2. d4 {[%clk 0:02:59.5]}
2... d5 {[%clk 0:03:00.7]} 3. Bd3 {[%clk 0:02:58.9]} 3... dxe4 {[%clk
0:02:59.1]} 4. Bxe4 {[%clk 0:02:59.8]} 4... Nf6 {[%clk 0:02:59.6]} 5. Bf3 {[%clk
0:03:00.3]} 5... Bf5 {[%clk 0:02:59.7]} 6. Ne2 {[%clk 0:03:00.2]} 6... e6 {[%clk
0:02:59.7]} 7. O-O {[%clk 0:02:59.8]} 7... h5 {[%clk 0:02:59]} 8. h3 {[%clk
0:02:58.8]} 8... Bd6 {[%clk 0:02:57.8]} 9. Nd2 {[%clk 0:02:31.6]} 9... Nbd7
{[%clk 0:02:36.1]} 10. Nc4 {[%clk 0:02:30.8]} 10... Bc7 {[%clk 0:02:36.1]} 11.
Bf4 {[%clk 0:02:28.7]} 11... Nb6 {[%clk 0:02:33.2]} 12. Nxb6 {[%clk 0:02:07.7]}
12... axb6 {[%clk 0:02:30.8]} 13. c4 {[%clk 0:01:37.9]} 13... Qd7 {[%clk
0:02:22]} 14. Bxc7 {[%clk 0:01:32.3]} 14... Qxc7 {[%clk 0:02:22.9]} 15. Qd2
{[%clk 0:01:18.4]} 15... O-O-O {[%clk 0:02:20]} 16. Rfd1 {[%clk 0:01:11.6]}
16... Bg4 {[%clk 0:02:16.7]} 17. Qe3 {[%clk 0:00:55.7]} 17... Bf5 {[%clk
0:02:15.3]} 18. a4 {[%clk 0:00:47]} 18... Ng4 {[%clk 0:01:43.4]} 19. hxg4 {[%clk
0:00:32.8]} 19... hxg4 {[%clk 0:01:44.3]} 20. Be4 {[%clk 0:00:31.4]} 20... Qh2+
{[%clk 0:01:34.4]} 21. Kf1 {[%clk 0:00:31.2]} 21... Qh1+ {[%clk 0:01:33.3]} 22.
Ng1 {[%clk 0:00:30.9]} 22... Rh2 {[%clk 0:01:32.6]} 23. Re1 {[%clk 0:00:20.1]}
23... Rdh8 {[%clk 0:01:12.3]} 24. Ke2 {[%clk 0:00:17.8]} 24... Bxe4 {[%clk
0:01:02.9]} 25. Qxe4 {[%clk 0:00:17.5]} 25... Rxg2 {[%clk 0:01:03.4]} 26. Rf1
{[%clk 0:00:10.6]} 26... Rxf2+ {[%clk 0:00:55.9]} 27. Kd3 {[%clk 0:00:09.3]}
27... Rd2+ {[%clk 0:00:53.9]} 28. Ke3 {[%clk 0:00:05.8]} 28... Rh3+ {[%clk
0:00:20.2]} 29. Nxh3 {[%clk 0:00:05.4]} 29... Re2+ {[%clk 0:00:20.7]} 30. Kxe2
{[%clk 0:00:04.6]} 30... Qxe4+ {[%clk 0:00:21.2]} 31. Kf2 {[%clk 0:00:03.9]}
31... Qxd4+ {[%clk 0:00:20.5]} 32. Kg3 {[%clk 0:00:03.5]} 32... gxh3 {[%clk
0:00:20.6]} 33. Kxh3 {[%clk 0:00:03.6]} 33... f6 {[%clk 0:00:19.1]} 34. Rad1
{[%clk 0:00:02.5]} 34... Qe3+ {[%clk 0:00:19.1]} 35. Kg2 {[%clk 0:00:02.4]}
35... Qe4+ {[%clk 0:00:18.7]} 36. Rf3 {[%clk 0:00:02]} 36... Qxc4 {[%clk
0:00:19]} 37. Kg3 {[%clk 0:00:01.2]} 37... e5 {[%clk 0:00:18.6]} 38. Kf2 {[%clk
0:00:01.4]} 38... Qc2+ {[%clk 0:00:18.3]} 39. Ke1 {[%clk 0:00:02.1]} 39... Qg2
{[%clk 0:00:18.3]} 40. Rf2 {[%clk 0:00:03]} 40... Qe4+ {[%clk 0:00:17.7]} 41.
Re2 {[%clk 0:00:03]} 41... Qxa4 {[%clk 0:00:18.3]} 42. Red2 {[%clk 0:00:02.7]}
42... Qh4+ {[%clk 0:00:18.8]} 43. Kf1 {[%clk 0:00:02.5]} 43... f5 {[%clk
0:00:19.4]} 44. Re2 {[%clk 0:00:01.5]} 44... e4 {[%clk 0:00:19.6]} 45. Rg2
{[%clk 0:00:01.3]} 45... Qf4+ {[%clk 0:00:19.3]} 46. Kg1 {[%clk 0:00:01.5]}
46... g5 {[%clk 0:00:19.8]} 47. Rf1 {[%clk 0:00:01.7]} 47... Qe3+ {[%clk
0:00:20.2]} 48. Kh1 {[%clk 0:00:02.4]} 48... Qh3+ {[%clk 0:00:20.3]} 49. Kg1
{[%clk 0:00:01.9]} 49... e3 {[%clk 0:00:16.3]} 0-1